fUSD/lending_fUSD_20260513
["ID","MTS","AMOUNT","RATE_DAILY","PERIOD"]
[422168941,1778644236000,-1299.85,0.00026526,7]
[422168942,1778644236000,-1302.9,0.00026527,7]
[422168929,1778644236000,-1302.9,0.00026478,2]
[422168943,1778644236000,-152.6,0.00026541,30]
[422168952,1778644236000,-386.57,0.00026575,7]
[422168947,1778644236000,-651.42,0.0002655,2]
[422168948,1778644236000,-1299.85,0.0002655,2]
[422168949,1778644236000,-1302.9,0.00026551,2]
[422168945,1778644236000,-387.03,0.00026549,2]
[422168946,1778644236000,-386.44,0.0002655,2]
[422168950,1778644236000,-1104.39,0.00026565,2]
[422168954,1778644236000,-152.72,0.00026575,2]
[422168959,1778644236000,-500.0,0.00026862,2]
[422168958,1778644236000,-150.0,0.00026849,2]
[422168953,1778644236000,-1302.96,0.00026575,7]
[422168955,1778644236000,-651.57,0.00026575,7]
[422168957,1778644236000,-1299.91,0.00026575,7]
[422168951,1778644236000,-152.71,0.00026575,2]
[422168938,1778644236000,-386.44,0.00026524,7]
[422168956,1778644236000,-387.19,0.00026575,7]
[422168939,1778644236000,-387.03,0.00026524,7]
[422168937,1778644236000,-152.6,0.00026508,7]
[422168897,1778644236000,-507.0,0.00026348,4]
[422168898,1778644236000,-651.42,0.00026353,7]
[422168900,1778644236000,-1302.9,0.00026358,7]
[422168902,1778644236000,-152.56,0.00026372,2]
[422168904,1778644236000,-651.42,0.00026377,7]
[422168913,1778644236000,-387.03,0.00026422,7]
[422168905,1778644236000,-1299.85,0.00026378,7]
[422168903,1778644236000,-152.6,0.00026374,2]
[422168907,1778644236000,-387.03,0.00026396,2]
[422168910,1778644236000,-1302.9,0.00026406,2]
[422168906,1778644236000,-1302.9,0.00026382,7]
[422168912,1778644236000,-152.6,0.00026407,7]
[422168908,1778644236000,-651.42,0.00026402,2]
[422168895,1778644236000,-152.6,0.0002634,30]
[422168909,1778644236000,-1299.85,0.00026403,2]
[422168911,1778644236000,-152.56,0.00026406,7]
[422168925,1778644236000,-386.44,0.00026474,2]
[422168915,1778644236000,-1299.85,0.00026428,7]
[422168923,1778644236000,-387.03,0.00026473,2]
[422168920,1778644236000,-651.42,0.00026451,2]
[422168922,1778644236000,-1302.9,0.00026454,2]
[422168918,1778644236000,-152.6,0.00026441,30]
[422168924,1778644236000,-152.56,0.00026473,2]
[422168914,1778644236000,-651.42,0.00026427,7]
[422168921,1778644236000,-1299.85,0.00026452,2]
[422168917,1778644236000,-152.56,0.0002644,30]
[422168927,1778644236000,-651.42,0.00026476,2]
[422168916,1778644236000,-1302.9,0.0002643,7]
[422168919,1778644236000,-387.03,0.00026447,2]
[422168999,1778644237000,-500.0,0.00026936,2]
[422169000,1778644237000,-500.0,0.00026936,2]
[422168989,1778644237000,-799.47,0.00026936,2]
[422168992,1778644237000,-799.47,0.00026936,2]
[422168995,1778644237000,-500.0,0.00026936,2]
[422168996,1778644237000,-500.0,0.00026936,2]
[422168993,1778644237000,-799.47,0.00026936,2]
[422168998,1778644237000,-500.0,0.00026936,2]
[422168991,1778644237000,-799.47,0.00026936,2]
[422168997,1778644237000,-509.26577516,0.00026936,2]
[422168990,1778644237000,-799.47,0.00026936,2]
[422169003,1778644237000,-542.23182778,0.00026936,2]
[422169002,1778644237000,-500.0,0.00026936,2]
[422169001,1778644237000,-500.0,0.00026936,2]
[422169009,1778644237000,-500.0,0.00026936,2]
[422169007,1778644237000,-500.0,0.00026936,2]
[422168988,1778644237000,-799.47,0.00026936,2]
[422169004,1778644237000,-500.0,0.00026936,2]
[422169013,1778644237000,-507.0,0.00027324,5]
[422169012,1778644237000,-155.31,0.00027219,2]
[422169005,1778644237000,-500.0,0.00026936,2]
[422169008,1778644237000,-500.0,0.00026936,2]
[422169006,1778644237000,-500.0,0.00026936,2]
[422169011,1778644237000,-1162.0,0.000271,7]
[422168994,1778644237000,-431.69745624,0.00026936,2]
[422168985,1778644237000,-500.0,0.00026936,2]
[422168982,1778644237000,-500.0,0.00026936,2]
[422168984,1778644237000,-500.0,0.00026936,2]
[422169010,1778644237000,-199.0,0.00027,7]
[422168964,1778644237000,-500.0,0.00026863,2]
[422168961,1778644237000,-500.0,0.00026862,2]
[422168960,1778644237000,-500.0,0.00026862,2]
[422168962,1778644237000,-500.0,0.00026863,2]
[422168963,1778644237000,-500.0,0.00026863,2]
[422168965,1778644237000,-799.47,0.00026863,2]
[422168967,1778644237000,-500.0,0.00026863,2]
[422168968,1778644237000,-500.0,0.00026863,2]
[422168969,1778644237000,-500.0,0.00026863,2]
[422168966,1778644237000,-500.0,0.00026863,2]
[422168983,1778644237000,-500.0,0.00026936,2]
[422168970,1778644237000,-507.15627863,0.00026863,2]
[422168975,1778644237000,-500.0,0.00026936,2]
[422168972,1778644237000,-500.0,0.00026935,2]
[422168973,1778644237000,-500.0,0.00026936,2]
[422168977,1778644237000,-500.0,0.00026936,2]
[422168987,1778644237000,-500.0,0.00026936,2]
[422168981,1778644237000,-608.0,0.00026936,2]
[422168979,1778644237000,-500.0,0.00026936,2]
[422168986,1778644237000,-500.0,0.00026936,2]
[422168980,1778644237000,-500.0,0.00026936,2]
[422168978,1778644237000,-500.0,0.00026936,2]
[422168976,1778644237000,-500.0,0.00026936,2]
[422168971,1778644237000,-866.79698873,0.00026896,2]
[422168974,1778644237000,-500.0,0.00026936,2]
[422169025,1778644237000,-300.0,0.00027397,2]
[422169016,1778644237000,-1500.0,0.00027397,2]
[422169047,1778644237000,-926.0,0.00028351,2]
[422169039,1778644237000,-165.77,0.00028049,2]
[422169050,1778644237000,-1223.0,0.00028351,2]
[422169049,1778644237000,-1269.0,0.00028351,2]
[422169048,1778644237000,-3541.0,0.00028351,2]
[422169044,1778644237000,-507.0,0.00028299,6]
[422169051,1778644237000,-417.0,0.00028351,2]
[422169052,1778644237000,-150.0,0.00028486,2]
[422169055,1778644237000,-150.0,0.00028486,2]
[422169054,1778644237000,-150.0,0.00028486,2]
[422169056,1778644237000,-150.0,0.00028486,2]
[422169046,1778644237000,-1353.0,0.00028351,2]
[422169062,1778644237000,-255.0,0.00028518,2]
[422169053,1778644237000,-150.0,0.00028486,2]
[422169057,1778644237000,-285.0,0.00028486,2]
[422169063,1778644237000,-150.0,0.00028537,2]
[422169060,1778644237000,-150.0,0.00028518,2]
[422169061,1778644237000,-150.0,0.00028518,2]
[422169065,1778644237000,-150.0,0.00028537,2]
[422169066,1778644237000,-150.0,0.00028537,2]
[422169067,1778644237000,-150.0,0.00028537,2]
[422169068,1778644237000,-150.0,0.00028537,2]
[422169069,1778644237000,-150.0,0.00028537,2]
[422169015,1778644237000,-150.0,0.00027397,2]
[422169058,1778644237000,-150.0,0.00028518,2]
[422169045,1778644237000,-624.807,0.00028351,2]
[422169064,1778644237000,-150.0,0.00028537,2]
[422169042,1778644237000,-150.0,0.00028192,2]
[422169017,1778644237000,-2000.0,0.00027397,7]
[422169043,1778644237000,-3083.8664249,0.00028208,2]
[422169014,1778644237000,-500.0,0.00027397,2]
[422169026,1778644237000,-5427.95,0.00027397,10]
[422169018,1778644237000,-2000.0,0.00027397,7]
[422169019,1778644237000,-2000.0,0.00027397,7]
[422169020,1778644237000,-2000.0,0.00027397,7]
[422169023,1778644237000,-1781.13667968,0.00027397,7]
[422169024,1778644237000,-151.14608712,0.00027397,2]
[422169021,1778644237000,-2000.0,0.00027397,7]
[422169027,1778644237000,-5102.7,0.00027397,10]
[422169028,1778644237000,-171.76,0.000274,7]
[422169022,1778644237000,-2000.0,0.00027397,7]
[422169030,1778644237000,-4947.87,0.000274,2]
[422169040,1778644237000,-11463.81,0.00028139,7]
[422169041,1778644237000,-1040.52859357,0.00028163,2]
[422169038,1778644237000,-185.49,0.00028,2]
[422169035,1778644237000,-4020.22203171,0.000274,2]
[422169036,1778644237000,-500.0,0.000278,7]
[422169037,1778644237000,-182.98,0.00027827,120]
[422169029,1778644237000,-1162.0,0.000274,7]
[422169033,1778644237000,-4947.87,0.000274,2]
[422169031,1778644237000,-4947.87,0.000274,2]
[422169032,1778644237000,-4947.87,0.000274,2]
[422169034,1778644237000,-927.64796829,0.000274,2]
[422169120,1778644238000,-1575.93055718,0.00030105,2]
[422169113,1778644238000,-500.0,0.00029999,2]
[422169114,1778644238000,-500.0,0.00029999,2]
[422169112,1778644238000,-500.0,0.00029999,2]
[422169115,1778644238000,-642.27472722,0.00029999,2]
[422169116,1778644238000,-500.0,0.00029999,2]
[422169119,1778644238000,-209.0,0.000301,120]
[422169110,1778644238000,-399.2171304,0.00029999,2]
[422169118,1778644238000,-155.31,0.00030085,2]
[422169109,1778644238000,-500.0,0.00029999,2]
[422169132,1778644238000,-152.0,0.00030594,30]
[422169122,1778644238000,-200.0,0.00030137,2]
[422169111,1778644238000,-500.0,0.00029999,2]
[422169124,1778644238000,-1575.93055718,0.00030228,2]
[422169144,1778644238000,-150.0,0.00031081,2]
[422169126,1778644238000,-507.0,0.0003025,8]
[422169123,1778644238000,-351.08,0.00030137,2]
[422169121,1778644238000,-500.0,0.00030137,2]
[422169125,1778644238000,-6415.74104578,0.00030239,2]
[422169129,1778644238000,-1575.93055718,0.00030388,2]
[422169130,1778644238000,-1575.93055718,0.00030552,2]
[422169127,1778644238000,-1575.93055718,0.0003035,2]
[422169128,1778644238000,-165.77,0.00030363,2]
[422169133,1778644238000,-156.0,0.00030628,30]
[422169143,1778644238000,-2009.19107876,0.000308,2]
[422169134,1778644238000,-154.0,0.00030628,30]
[422169139,1778644238000,-371.0,0.00030628,30]
[422169108,1778644238000,-604.36473015,0.00029999,2]
[422169131,1778644238000,-626.0,0.00030581,30]
[422169103,1778644238000,-427.01870842,0.00029548,69]
[422169075,1778644238000,-188.0,0.00028623,2]
[422169102,1778644238000,-1051.0,0.00029445,2]
[422169071,1778644238000,-220.0,0.00028559,2]
[422169078,1778644238000,-155.31,0.00028652,2]
[422169070,1778644238000,-175.0,0.00028537,2]
[422169072,1778644238000,-275.0,0.00028568,2]
[422169073,1778644238000,-227.0,0.00028588,2]
[422169079,1778644238000,-503.40789207,0.00028669,2]
[422169080,1778644238000,-150.0,0.00028679,2]
[422169086,1778644238000,-150.0,0.00028679,2]
[422169091,1778644238000,-284.0,0.00028683,2]
[422169092,1778644238000,-150.66414301,0.000287,30]
[422169090,1778644238000,-291.0,0.00028679,2]
[422169087,1778644238000,-150.0,0.00028679,2]
[422169083,1778644238000,-150.0,0.00028679,2]
[422169104,1778644238000,-150.0,0.00029601,2]
[422169085,1778644238000,-150.0,0.00028679,2]
[422169081,1778644238000,-150.0,0.00028679,2]
[422169093,1778644238000,-500.0,0.00028767,2]
[422169088,1778644238000,-150.0,0.00028679,2]
[422169095,1778644238000,-5000.0,0.00029238,2]
[422169106,1778644238000,-152.0,0.0002979,7]
[422169107,1778644238000,-500.0,0.00029999,2]
[422169105,1778644238000,-11463.81,0.00029779,7]
[422169098,1778644238000,-5000.0,0.00029238,2]
[422169096,1778644238000,-5000.0,0.00029238,2]
[422169094,1778644238000,-5026.32250966,0.00029238,2]
[422169100,1778644238000,-507.0,0.00029275,7]
[422169101,1778644238000,-198.0,0.00029397,2]
[422169099,1778644238000,-5000.0,0.00029238,2]
[422169089,1778644238000,-150.0,0.00028679,2]
[422169137,1778644238000,-157.0,0.00030628,30]
[422169117,1778644238000,-1307.95741162,0.0003,120]
[422169136,1778644238000,-386.0,0.00030628,30]
[422169177,1778644238000,-1827.15,0.000323,14]
[422169179,1778644238000,-156.0,0.00032628,30]
[422169176,1778644238000,-182.98,0.00032266,120]
[422169174,1778644238000,-200.0,0.00032055,2]
[422169173,1778644238000,-740.77741141,0.00031697,2]
[422169190,1778644238000,-151.0,0.00032628,30]
[422169180,1778644238000,-157.0,0.00032628,30]
[422169186,1778644238000,-154.0,0.00032628,30]
[422169188,1778644238000,-371.0,0.00032628,30]
[422169184,1778644238000,-157.0,0.00032628,30]
[422169192,1778644238000,-152.0,0.00032628,30]
[422169202,1778644238000,-175.05478419,0.00032877,2]
[422169204,1778644238000,-155.86,0.00032877,115]
[422169175,1778644238000,-507.0,0.00032201,10]
[422169206,1778644238000,-602.16,0.000329,7]
[422169210,1778644238000,-350.0,0.00033014,5]
[422169200,1778644238000,-261.0,0.00032877,2]
[422169196,1778644238000,-165.77,0.00032678,2]
[422169194,1778644238000,-150.0,0.00032636,2]
[422169198,1778644238000,-169.4497641,0.00032876,2]
[422169215,1778644238000,-507.0,0.00033177,11]
[422169213,1778644238000,-11463.81,0.00033058,14]
[422169216,1778644238000,-162.41777523,0.0003362,2]
[422169218,1778644238000,-156.0,0.00033628,30]
[422169220,1778644238000,-157.0,0.00033628,30]
[422169222,1778644238000,-386.0,0.00033628,30]
[422169224,1778644238000,-157.0,0.00033628,30]
[422169141,1778644238000,-158.0,0.00030628,30]
[422169209,1778644238000,-500.0,0.00032904,2]
[422169172,1778644238000,-126.01957732,0.00031697,2]
[422169182,1778644238000,-386.0,0.00032628,30]
[422169162,1778644238000,-500.0,0.00031507,2]
[422169138,1778644238000,-154.0,0.00030628,30]
[422169135,1778644238000,-157.0,0.00030628,30]
[422169170,1778644238000,-165.83592434,0.00031628,30]
[422169140,1778644238000,-151.0,0.00030628,30]
[422169146,1778644238000,-152.0,0.00031192,7]
[422169153,1778644238000,-1353.0,0.00031351,2]
[422169152,1778644238000,-500.0,0.00031334,120]
[422169149,1778644238000,-180.26990368,0.00031334,7]
[422169148,1778644238000,-1040.52859357,0.00031297,2]
[422169155,1778644238000,-3541.0,0.00031351,2]
[422169156,1778644238000,-522.507,0.00031351,2]
[422169147,1778644238000,-507.0,0.00031226,9]
[422169150,1778644238000,-500.0,0.00031334,120]
[422169145,1778644238000,-200.0,0.00031096,2]
[422169151,1778644238000,-799.47,0.00031334,7]
[422169142,1778644238000,-152.0,0.00030628,30]
[422169157,1778644238000,-417.0,0.00031351,2]
[422169154,1778644238000,-807.223,0.00031351,2]
[422169171,1778644238000,-152.0,0.00031628,30]
[422169167,1778644238000,-154.0,0.00031628,30]
[422169165,1778644238000,-386.0,0.00031628,30]
[422169164,1778644238000,-157.0,0.00031628,30]
[422169168,1778644238000,-371.0,0.00031628,30]
[422169163,1778644238000,-156.0,0.00031628,30]
[422169169,1778644238000,-151.0,0.00031628,30]
[422169166,1778644238000,-157.0,0.00031628,30]
[422169161,1778644238000,-1000.0,0.000315,7]
[422169159,1778644238000,-602.16,0.000314,7]
[422169158,1778644238000,-3083.8664249,0.00031351,2]
[422169160,1778644238000,-11463.81,0.00031418,7]
[422169256,1778644239000,-507.0,0.00034152,12]
[422169254,1778644239000,-500.0,0.00034111,120]
[422169252,1778644239000,-799.47,0.00034111,7]
[422169260,1778644239000,-150.0,0.00034267,2]
[422169265,1778644239000,-3541.0,0.00034351,2]
[422169267,1778644239000,-1040.52859357,0.00034432,2]
[422169269,1778644239000,-1000.0,0.00034481,2]
[422169271,1778644239000,-2000.0,0.00034481,2]
[422169273,1778644239000,-181.16638736,0.00034484,2]
[422169264,1778644239000,-1353.0,0.00034351,2]
[422169258,1778644239000,-602.16,0.000342,7]
[422169262,1778644239000,-216.55703365,0.00034343,2]
[422169240,1778644239000,-500.0,0.00033904,30]
[422169248,1778644239000,-350.0,0.00033973,5]
[422169246,1778644239000,-49358.0,0.00033905,60]
[422169244,1778644239000,-500.0,0.00033904,2]
[422169242,1778644239000,-500.0,0.00033904,2]
[422169238,1778644239000,-425.30219549,0.00033781,7]
[422169232,1778644239000,-152.0,0.00033628,30]
[422169236,1778644239000,-248.69041678,0.00033781,7]
[422169234,1778644239000,-1827.15,0.000337,14]
[422169226,1778644239000,-154.0,0.00033628,30]
[422169230,1778644239000,-151.0,0.00033628,30]
[422169228,1778644239000,-371.0,0.00033628,30]
[422169277,1778644239000,-1827.15,0.000345,14]
[422169250,1778644239000,-500.0,0.00034111,120]
[422169275,1778644239000,-3083.8664249,0.00034494,2]
[422169287,1778644239000,-157.0,0.00034628,30]
[422169283,1778644239000,-157.0,0.00034628,30]
[422169383,1778644239000,-60.73607521,0.00025963,2]
[422169279,1778644239000,-288.74271153,0.0003461,2]
[422169381,1778644239000,-500.0,0.00025963,2]
[422169377,1778644239000,-247.4,0.00025249,2]
[422169375,1778644239000,-250.0,0.00022351,2]
[422169326,1778644239000,-500.0,0.00035068,3]
[422169328,1778644239000,-337.92271667,0.00035068,3]
[422169322,1778644239000,-416.4953701,0.00035,5]
[422169319,1778644239000,-593.24062871,0.00035,5]
[422169317,1778644239000,-602.16,0.00035,7]
[422169309,1778644239000,-799.47,0.00034938,7]
[422169313,1778644239000,-564.1357537,0.00035,30]
[422169307,1778644239000,-500.0,0.00034938,120]
[422169379,1778644239000,-500.0,0.00025963,2]
[422169305,1778644239000,-350.0,0.00034931,5]
[422169315,1778644239000,-28309.0,0.00035,7]
[422169303,1778644239000,-49358.0,0.0003481,60]
[422169301,1778644239000,-602.16,0.000348,7]
[422169299,1778644239000,-1500.0,0.00034795,2]
[422169297,1778644239000,-11463.81,0.00034697,14]
[422169295,1778644239000,-152.0,0.00034628,30]
[422169289,1778644239000,-154.0,0.00034628,30]
[422169293,1778644239000,-151.0,0.00034628,30]
[422169281,1778644239000,-156.0,0.00034628,30]
[422169291,1778644239000,-371.0,0.00034628,30]
[422169285,1778644239000,-386.0,0.00034628,30]
[422169311,1778644239000,-394.07930603,0.00034938,120]
[422169514,1778644240000,-237.78227514,0.00029999,2]
[422169506,1778644240000,-652.48,0.00026575,7]
[422169502,1778644240000,-652.38,0.00026525,7]
[422169481,1778644240000,-652.38,0.00026375,7]
[422169489,1778644240000,-387.19,0.0002642,7]
[422169491,1778644240000,-652.38,0.00026425,7]
[422169487,1778644240000,-652.38,0.000264,2]
[422169484,1778644240000,-387.19,0.00026395,2]
[422169496,1778644240000,-387.19,0.00026472,2]
[422169512,1778644240000,-164.94,0.00028439,2]
[422169504,1778644240000,-652.38,0.0002655,2]
[422169510,1778644240000,-4252.25,0.00027397,10]
[422169494,1778644240000,-652.38,0.0002645,2]
[422169516,1778644240000,-164.94,0.00030553,2]
[422169493,1778644240000,-387.19,0.00026446,2]
[422169498,1778644240000,-652.38,0.00026475,2]
[422169508,1778644240000,-247.4,0.00026793,2]
[422169521,1778644240000,-417.0,0.00034351,2]
[422169519,1778644240000,-2009.19107873,0.000308,2]
[422169529,1778644240000,-500.0,0.00035068,3]
[422169527,1778644240000,-500.0,0.00035068,3]
[422169525,1778644240000,-500.0,0.00035068,3]
[422169478,1778644240000,-387.19,0.00026369,7]
[422169531,1778644240000,-500.0,0.00035068,3]
[422169500,1778644240000,-652.38,0.000265,7]
[422169472,1778644240000,-652.38,0.00026325,2]
[422169447,1778644240000,-387.19,0.00026163,2]
[422169474,1778644240000,-387.19,0.00026343,7]
[422169535,1778644240000,-500.0,0.00035068,3]
[422169423,1778644240000,-439.26392479,0.00025963,2]
[422169427,1778644240000,-500.0,0.00025963,2]
[422169425,1778644240000,-500.0,0.00025963,2]
[422169429,1778644240000,-500.0,0.00025963,2]
[422169421,1778644240000,-165.686,0.00022351,2]
[422169437,1778644240000,-652.38,0.000261,2]
[422169433,1778644240000,-500.0,0.00025963,2]
[422169435,1778644240000,-387.19,0.00026086,2]
[422169431,1778644240000,-500.0,0.00025963,2]
[422169441,1778644240000,-652.38,0.00026125,7]
[422169439,1778644240000,-387.19,0.00026111,7]
[422169443,1778644240000,-387.19,0.00026137,2]
[422169445,1778644240000,-652.38,0.0002615,2]
[422169449,1778644240000,-652.38,0.00026175,2]
[422169451,1778644240000,-387.19,0.00026189,7]
[422169453,1778644240000,-652.38,0.000262,7]
[422169455,1778644240000,-387.19,0.00026214,7]
[422169457,1778644240000,-652.38,0.00026225,7]
[422169458,1778644240000,-387.19,0.0002624,2]
[422169460,1778644240000,-652.38,0.0002625,2]
[422169462,1778644240000,-387.19,0.00026266,7]
[422169464,1778644240000,-652.38,0.00026275,7]
[422169468,1778644240000,-652.38,0.000263,2]
[422169470,1778644240000,-387.19,0.00026317,2]
[422169476,1778644240000,-652.38,0.0002635,7]
[422169523,1778644240000,-162.07728333,0.00035068,3]
[422169466,1778644240000,-387.19,0.00026292,2]
[422169539,1778644240000,-500.0,0.00035068,3]
[422169576,1778644240000,-1364.5999034,0.00035464,2]
[422169598,1778644240000,-500.0,0.00035616,7]
[422169600,1778644240000,-500.0,0.00035616,7]
[422169601,1778644240000,-500.0,0.00035616,7]
[422169604,1778644240000,-307.56259904,0.00035616,7]
[422169605,1778644240000,-500.0,0.00035616,7]
[422169607,1778644240000,-1000.0,0.00035616,120]
[422169609,1778644240000,-1000.0,0.00035616,10]
[422169613,1778644240000,-1000.0,0.00035616,10]
[422169617,1778644240000,-1000.0,0.00035616,10]
[422169621,1778644240000,-1000.0,0.00035616,10]
[422169619,1778644240000,-1000.0,0.00035616,10]
[422169622,1778644240000,-1000.0,0.00035616,10]
[422169615,1778644240000,-1000.0,0.00035616,10]
[422169611,1778644240000,-1000.0,0.00035616,10]
[422169626,1778644240000,-1000.0,0.00035616,10]
[422169624,1778644240000,-1000.0,0.00035616,10]
[422169634,1778644240000,-1000.0,0.00035616,10]
[422169631,1778644240000,-1000.0,0.00035616,10]
[422169632,1778644240000,-1000.0,0.00035616,10]
[422169641,1778644240000,-187.15,0.00035616,2]
[422169636,1778644240000,-1000.0,0.00035616,10]
[422169628,1778644240000,-1000.0,0.00035616,10]
[422169639,1778644240000,-1000.0,0.00035616,10]
[422169643,1778644240000,-220.88818382,0.00035616,2]
[422169574,1778644240000,-41837.3449459,0.00035464,2]
[422169592,1778644240000,-500.0,0.00035616,7]
[422169533,1778644240000,-500.0,0.00035068,3]
[422169580,1778644240000,-500.0,0.00035616,7]
[422169596,1778644240000,-500.0,0.00035616,7]
[422169537,1778644240000,-500.0,0.00035068,3]
[422169540,1778644240000,-206.4843588,0.00035088,120]
[422169542,1778644240000,-507.0,0.00035128,13]
[422169544,1778644240000,-1500.0,0.000352,7]
[422169546,1778644240000,-1827.15,0.000352,14]
[422169548,1778644240000,-299.30487589,0.00035363,40]
[422169550,1778644240000,-500.0,0.00035463,30]
[422169556,1778644240000,-500.0,0.00035463,2]
[422169552,1778644240000,-500.0,0.00035463,30]
[422169560,1778644240000,-254.28762829,0.00035463,2]
[422169554,1778644240000,-500.0,0.00035463,2]
[422169562,1778644240000,-297237.9795035,0.00035464,2]
[422169564,1778644240000,-1388.6955836,0.00035464,2]
[422169578,1778644240000,-500.0,0.00035616,7]
[422169558,1778644240000,-500.0,0.00035463,2]
[422169594,1778644240000,-500.0,0.00035616,7]
[422169588,1778644240000,-500.0,0.00035616,7]
[422169590,1778644240000,-500.0,0.00035616,7]
[422169586,1778644240000,-500.0,0.00035616,7]
[422169582,1778644240000,-500.0,0.00035616,7]
[422169572,1778644240000,-65973.7066372,0.00035464,2]
[422169568,1778644240000,-7636.2004333,0.00035464,2]
[422169566,1778644240000,-9715.1583196,0.00035464,2]
[422169570,1778644240000,-161.2479689,0.00035464,2]
[422169584,1778644240000,-500.0,0.00035616,7]
[422169738,1778644241000,-150.0,0.00036838,7]
[422169740,1778644241000,-150.0,0.00036838,7]
[422169729,1778644241000,-182.98,0.00036704,120]
[422169727,1778644241000,-171.76,0.000367,30]
[422169725,1778644241000,-152.0,0.00036628,30]
[422169705,1778644241000,-179.53,0.00036568,5]
[422169721,1778644241000,-371.0,0.00036628,30]
[422169719,1778644241000,-154.0,0.00036628,30]
[422169717,1778644241000,-157.0,0.00036628,30]
[422169707,1778644241000,-179.53,0.00036568,5]
[422169744,1778644241000,-150.0,0.00036838,7]
[422169723,1778644241000,-151.0,0.00036628,30]
[422169742,1778644241000,-150.0,0.00036838,7]
[422169772,1778644241000,-1000.0,0.00036986,120]
[422169746,1778644241000,-150.14584826,0.00036838,7]
[422169732,1778644241000,-1107.841,0.00036755,46]
[422169763,1778644241000,-150.0,0.00036888,7]
[422169761,1778644241000,-350.0,0.00036849,5]
[422169759,1778644241000,-150.0,0.00036838,7]
[422169751,1778644241000,-150.0,0.00036838,7]
[422169765,1778644241000,-168.99,0.0003693,3]
[422169748,1778644241000,-150.0,0.00036838,7]
[422169767,1778644241000,-168.99,0.0003693,3]
[422169755,1778644241000,-202.64844241,0.00036838,7]
[422169753,1778644241000,-150.46696441,0.00036838,7]
[422169713,1778644241000,-157.0,0.00036628,30]
[422169769,1778644241000,-150.0,0.00036936,7]
[422169734,1778644241000,-150.0,0.00036838,7]
[422169709,1778644241000,-49359.0,0.00036619,60]
[422169677,1778644241000,-150.0,0.00035981,2]
[422169711,1778644241000,-156.0,0.00036628,30]
[422169645,1778644241000,-156.0,0.00035628,30]
[422169647,1778644241000,-157.0,0.00035628,30]
[422169649,1778644241000,-386.0,0.00035628,30]
[422169757,1778644241000,-150.0,0.00036838,7]
[422169651,1778644241000,-157.0,0.00035628,30]
[422169661,1778644241000,-649.0,0.00035701,60]
[422169663,1778644241000,-162.41777524,0.00035702,30]
[422169655,1778644241000,-371.0,0.00035628,30]
[422169653,1778644241000,-154.0,0.00035628,30]
[422169657,1778644241000,-151.0,0.00035628,30]
[422169667,1778644241000,-1703.57674179,0.00035758,2]
[422169665,1778644241000,-49358.0,0.00035714,60]
[422169669,1778644241000,-500.0,0.00035858,120]
[422169715,1778644241000,-386.0,0.00036628,30]
[422169671,1778644241000,-799.47,0.00035858,7]